fUSD/lending_fUSD_20250128
["ID","MTS","AMOUNT","RATE_DAILY","PERIOD"]
[350650336,1738025439908,-576.58120097,0.00018986,2]
[350650337,1738025439918,-576.58120097,0.00018986,2]
[350650338,1738025439927,-576.58120097,0.00018986,2]
[350650339,1738025439936,-576.58120097,0.00018986,2]
[350650340,1738025439946,-576.58120097,0.00018986,2]
[350650341,1738025439955,-576.58120097,0.00018986,2]
[350650342,1738025439964,-171.20697433,0.00018986,2]
[350650343,1738025439974,-171.20697433,0.00018986,2]
[350650344,1738025439983,-171.20697433,0.00018986,2]
[350650345,1738025439994,-171.20697433,0.00018986,2]
[350650346,1738025440004,-171.20697433,0.00018986,2]
[350650347,1738025440047,-171.20697433,0.00018986,2]
[350650348,1738025440056,-171.20697433,0.00018986,2]
[350650349,1738025440066,-171.20697433,0.00018986,2]
[350650350,1738025440075,-171.20697433,0.00018986,2]
[350650351,1738025440084,-171.20697433,0.00018986,2]
[350650352,1738025440093,-171.20697433,0.00018986,2]
[350650353,1738025440103,-171.20697433,0.00018986,2]
[350650354,1738025440112,-171.20697433,0.00018986,2]
[350650355,1738025440121,-171.20697433,0.00018986,2]
[350650356,1738025440130,-171.20697433,0.00018986,2]
[350650357,1738025440140,-171.20697433,0.00018986,2]
[350650358,1738025440149,-171.20697433,0.00018986,2]
[350650359,1738025440159,-171.20697433,0.00018986,2]
[350650360,1738025440168,-171.20697433,0.00018986,2]
[350650361,1738025440177,-171.20697433,0.00018986,2]
[350650362,1738025440186,-171.20697433,0.00018986,2]
[350650363,1738025440195,-171.20697433,0.00018986,2]
[350650364,1738025440204,-171.20697433,0.00018986,2]
[350650365,1738025440214,-171.20697433,0.00018986,2]
[350650366,1738025440223,-171.20697433,0.00018986,2]
[350650367,1738025440233,-171.20697433,0.00018986,2]
[350650368,1738025440242,-171.20697433,0.00018986,2]
[350650369,1738025440251,-171.20697433,0.00018986,2]
[350650370,1738025440260,-171.20697433,0.00018986,2]
[350650371,1738025440270,-171.20697433,0.00018986,2]
[350650372,1738025440279,-171.20697433,0.00018986,2]
[350650373,1738025440291,-171.20697433,0.00018986,2]
[350650374,1738025440301,-171.20697433,0.00018986,2]
[350650375,1738025440310,-171.20697433,0.00018986,2]
[350650376,1738025440319,-171.20697433,0.00018986,2]
[350650377,1738025440328,-171.20697433,0.00018986,2]
[350650378,1738025440337,-171.20697433,0.00018986,2]
[350650379,1738025440347,-171.20697433,0.00018986,2]
[350650380,1738025440356,-171.20697433,0.00018986,2]
[350650381,1738025440365,-171.20697433,0.00018986,2]
[350650382,1738025440374,-171.20697433,0.00018986,2]
[350650383,1738025440383,-171.20697433,0.00018986,2]
[350650384,1738025440392,-171.20697433,0.00018986,2]
[350650385,1738025440401,-171.20697433,0.00018986,2]
[350650386,1738025440410,-171.20697433,0.00018986,2]
[350650387,1738025440419,-171.20697433,0.00018986,2]
[350650388,1738025440428,-171.20697433,0.00018986,2]
[350650389,1738025440437,-171.20697433,0.00018986,2]
[350650390,1738025440446,-171.20697433,0.00018986,2]
[350650391,1738025440455,-171.20697433,0.00018986,2]
[350650392,1738025440464,-171.20697433,0.00018986,2]
[350650395,1738025440474,-171.20697433,0.00018986,2]
[350650396,1738025440483,-171.20697433,0.00018986,2]
[350650398,1738025440492,-171.20697433,0.00018986,2]
[350650400,1738025440501,-171.20697433,0.00018986,2]
[350650401,1738025440510,-171.20697433,0.00018986,2]
[350650402,1738025440519,-171.20697433,0.00018986,2]
[350650403,1738025440528,-171.20697433,0.00018986,2]
[350650404,1738025440538,-171.20697433,0.00018986,2]
[350650405,1738025440547,-171.20697433,0.00018986,2]
[350650406,1738025440557,-171.20697433,0.00018986,2]
[350650407,1738025440566,-171.20697433,0.00018986,2]
[350650408,1738025440575,-171.20697433,0.00018986,2]
[350650409,1738025440584,-171.20697433,0.00018986,2]
[350650410,1738025440594,-171.20697433,0.00018986,2]
[350650411,1738025440603,-171.20697433,0.00018986,2]
[350650412,1738025440612,-171.20697433,0.00018986,2]
[350650413,1738025440621,-171.20697433,0.00018986,2]
[350650414,1738025440630,-171.20697433,0.00018986,2]
[350650415,1738025440639,-171.20697433,0.00018986,2]
[350650416,1738025440648,-171.20697433,0.00018986,2]
[350650417,1738025440658,-171.20697433,0.00018986,2]
[350650418,1738025440668,-171.20697433,0.00018986,2]
[350650419,1738025440677,-171.20697433,0.00018986,2]
[350650420,1738025440686,-171.20697433,0.00018986,2]
[350650421,1738025440695,-171.20697433,0.00018986,2]
[350650422,1738025440704,-171.20697433,0.00018986,2]
[350650423,1738025440713,-171.20697433,0.00018986,2]
[350650424,1738025440722,-171.20697433,0.00018986,2]
[350650425,1738025440731,-171.20697433,0.00018986,2]
[350650426,1738025440741,-171.20697433,0.00018986,2]
[350650427,1738025440750,-171.20697433,0.00018986,2]
[350650428,1738025440759,-171.20697433,0.00018986,2]
[350650429,1738025440768,-171.20697433,0.00018986,2]
[350650430,1738025440777,-171.20697433,0.00018986,2]
[350650431,1738025440788,-171.20697433,0.00018986,2]
[350650432,1738025440797,-171.20697433,0.00018986,2]
[350650433,1738025440810,-171.20697433,0.00018986,2]
[350650434,1738025440820,-171.20697433,0.00018986,2]
[350650435,1738025440829,-171.20697433,0.00018986,2]
[350650436,1738025440839,-171.20697433,0.00018986,2]
[350650437,1738025440848,-171.20697433,0.00018986,2]
[350650438,1738025440857,-171.20697433,0.00018986,2]
[350650439,1738025440867,-171.20697433,0.00018986,2]
[350650440,1738025440878,-171.20697433,0.00018986,2]
[350650441,1738025440887,-171.20697433,0.00018986,2]
[350650442,1738025440897,-171.20697433,0.00018986,2]
[350650443,1738025440907,-171.20697433,0.00018986,2]
[350650444,1738025440916,-171.20697433,0.00018986,2]
[350650445,1738025440925,-171.20697433,0.00018986,2]
[350650446,1738025440934,-150.0,0.00018986,2]
[350650447,1738025440943,-150.0,0.00018986,2]
[350650448,1738025440952,-271.44981978,0.00018986,2]
[350650449,1738025440962,-150.0,0.00018986,2]
[350650450,1738025440971,-150.0,0.00018986,2]
[350650451,1738025440980,-150.68814998,0.00018986,2]
[350650452,1738025440989,-305.7965491,0.00018986,2]
[350650453,1738025440998,-305.7965491,0.00018986,2]
[350650454,1738025441008,-305.7965491,0.00018986,2]
[350650455,1738025441017,-305.7965491,0.00018986,2]
[350650456,1738025441026,-305.7965491,0.00018986,2]
[350650457,1738025441036,-305.7965491,0.00018986,2]
[350650458,1738025441046,-305.7965491,0.00018986,2]
[350650459,1738025441056,-305.7965491,0.00018986,2]
[350650460,1738025441065,-305.7965491,0.00018986,2]
[350650461,1738025441075,-305.7965491,0.00018986,2]
[350650462,1738025441084,-305.7965491,0.00018986,2]
[350650463,1738025441094,-305.7965491,0.00018986,2]
[350650464,1738025441104,-305.7965491,0.00018986,2]
[350650465,1738025441113,-305.7965491,0.00018986,2]
[350650466,1738025441123,-305.7965491,0.00018986,2]
[350650467,1738025441132,-305.7965491,0.00018986,2]
[350650468,1738025441141,-305.7965491,0.00018986,2]
[350650469,1738025441151,-305.7965491,0.00018986,2]
[350650470,1738025441161,-305.7965491,0.00018986,2]
[350650471,1738025441170,-305.7965491,0.00018986,2]
[350650472,1738025441180,-305.7965491,0.00018986,2]
[350650473,1738025441189,-305.7965491,0.00018986,2]
[350650474,1738025441199,-305.7965491,0.00018986,2]
[350650475,1738025441208,-305.7965491,0.00018986,2]
[350650476,1738025441217,-305.7965491,0.00018986,2]
[350650477,1738025441226,-305.7965491,0.00018986,2]
[350650478,1738025441235,-305.7965491,0.00018986,2]
[350650479,1738025441244,-305.7965491,0.00018986,2]
[350650480,1738025441254,-305.7965491,0.00018986,2]
[350650481,1738025441263,-305.7965491,0.00018986,2]
[350650482,1738025441271,-305.7965491,0.00018986,2]
[350650483,1738025441280,-305.7965491,0.00018986,2]
[350650484,1738025441289,-305.7965491,0.00018986,2]
[350650485,1738025441299,-305.7965491,0.00018986,2]
[350650486,1738025441308,-305.7965491,0.00018986,2]
[350650487,1738025441317,-305.7965491,0.00018986,2]
[350650488,1738025441326,-305.7965491,0.00018986,2]
[350650489,1738025441335,-305.7965491,0.00018986,2]
[350650490,1738025441345,-305.7965491,0.00018986,2]
[350650491,1738025441354,-305.7965491,0.00018986,2]
[350650492,1738025441363,-305.7965491,0.00018986,2]
[350650493,1738025441373,-305.7965491,0.00018986,2]
[350650494,1738025441382,-305.7965491,0.00018986,2]
[350650495,1738025441391,-305.7965491,0.00018986,2]
[350650496,1738025441401,-305.7965491,0.00018986,2]
[350650497,1738025441410,-305.7965491,0.00018986,2]
[350650498,1738025441419,-305.7965491,0.00018986,2]
[350650499,1738025441428,-305.7965491,0.00018986,2]
[350650500,1738025441438,-305.7965491,0.00018986,2]
[350650501,1738025441447,-305.7965491,0.00018986,2]
[350650502,1738025441458,-305.7965491,0.00018986,2]
[350650503,1738025441467,-305.7965491,0.00018986,2]
[350650504,1738025441477,-305.7965491,0.00018986,2]
[350650505,1738025441486,-305.7965491,0.00018986,2]
[350650506,1738025441496,-305.7965491,0.00018986,2]
[350650507,1738025441505,-305.7965491,0.00018986,2]
[350650508,1738025441515,-305.7965491,0.00018986,2]
[350650509,1738025441525,-305.7965491,0.00018986,2]
[350650510,1738025441535,-305.7965491,0.00018986,2]
[350650511,1738025441546,-305.7965491,0.00018986,2]
[350650512,1738025441556,-305.7965491,0.00018986,2]
[350650513,1738025441566,-305.7965491,0.00018986,2]
[350650514,1738025441575,-305.7965491,0.00018986,2]
[350650515,1738025441584,-305.7965491,0.00018986,2]
[350650516,1738025441594,-305.7965491,0.00018986,2]
[350650517,1738025441603,-305.7965491,0.00018986,2]
[350650518,1738025441612,-305.7965491,0.00018986,2]
[350650519,1738025441622,-305.7965491,0.00018986,2]
[350650520,1738025441631,-305.7965491,0.00018986,2]
[350650521,1738025441640,-305.7965491,0.00018986,2]
[350650522,1738025441649,-305.7965491,0.00018986,2]
[350650523,1738025441659,-305.7965491,0.00018986,2]
[350650524,1738025441667,-305.7965491,0.00018986,2]
[350650525,1738025441677,-305.7965491,0.00018986,2]
[350650526,1738025441686,-305.7965491,0.00018986,2]
[350650527,1738025441695,-305.7965491,0.00018986,2]
[350650528,1738025441704,-305.7965491,0.00018986,2]
[350650529,1738025441713,-305.7965491,0.00018986,2]
[350650530,1738025441722,-305.7965491,0.00018986,2]
[350650531,1738025441731,-305.7965491,0.00018986,2]
[350650532,1738025441741,-305.7965491,0.00018986,2]
[350650533,1738025441750,-305.7965491,0.00018986,2]
[350650534,1738025441759,-305.7965491,0.00018986,2]
[350650535,1738025441769,-305.7965491,0.00018986,2]
[350650536,1738025441778,-305.7965491,0.00018986,2]
[350650537,1738025441790,-305.7965491,0.00018986,2]
[350650538,1738025441801,-305.7965491,0.00018986,2]
[350650539,1738025441811,-305.7965491,0.00018986,2]
[350650540,1738025441821,-305.7965491,0.00018986,2]
[350650541,1738025441831,-305.7965491,0.00018986,2]
[350650542,1738025441840,-305.7965491,0.00018986,2]
[350650543,1738025441850,-305.7965491,0.00018986,2]
[350650544,1738025441860,-305.7965491,0.00018986,2]
[350650545,1738025441870,-305.7965491,0.00018986,2]
[350650546,1738025441880,-305.7965491,0.00018986,2]
[350650547,1738025441890,-305.7965491,0.00018986,2]
[350650548,1738025441899,-305.7965491,0.00018986,2]
[350650549,1738025441909,-305.7965491,0.00018986,2]
[350650550,1738025441919,-305.7965491,0.00018986,2]
[350650551,1738025441929,-305.7965491,0.00018986,2]
[350650552,1738025441939,-285.84125435,0.00018986,2]
[350650553,1738025441948,-150.0,0.00018986,2]
[350650554,1738025441958,-150.0,0.00018986,2]
[350650555,1738025441967,-150.0,0.00018986,2]
[350650556,1738025441976,-150.8247897,0.00018986,2]
[350650557,1738025441985,-150.0,0.00018986,2]
[350650558,1738025441995,-150.0,0.00018986,2]
[350650559,1738025442004,-150.0,0.00018986,2]
[350650560,1738025442014,-150.0,0.00018986,2]
[350650561,1738025442023,-150.0,0.00018986,2]
[350650562,1738025442033,-150.0,0.00018986,2]
[350650563,1738025442046,-150.0,0.00018986,2]
[350650564,1738025442055,-150.0,0.00018986,2]
[350650565,1738025442065,-150.59910721,0.00018986,2]
[350650566,1738025442074,-150.0,0.00018986,2]
[350650567,1738025442084,-150.0,0.00018986,2]
[350650568,1738025442093,-150.0,0.00018986,2]
[350650569,1738025442103,-280.70356643,0.00018986,2]
[350650570,1738025442113,-159.97310991,0.00018986,2]
[350650571,1738025442122,-172.78768703,0.00018986,2]
[350650572,1738025442131,-150.0,0.00018986,2]
[350650573,1738025442141,-263.87661588,0.00018986,2]
[350650574,1738025442150,-150.0,0.00018986,2]
[350650575,1738025442160,-150.0,0.00018986,2]
[350650576,1738025442170,-150.0,0.00018986,2]
[350650577,1738025442179,-150.0,0.00018986,2]
[350650578,1738025442188,-150.0,0.00018986,2]
[350650579,1738025442198,-150.0,0.00018986,2]
[350650580,1738025442207,-150.0,0.00018986,2]
[350650581,1738025442217,-150.0,0.00018986,2]
[350650582,1738025442226,-150.0,0.00018986,2]
[350650583,1738025442235,-150.0,0.00018986,2]
[350650584,1738025442244,-150.0,0.00018986,2]
[350650585,1738025442253,-150.0,0.00018986,2]
[350650586,1738025442262,-150.0,0.00018986,2]
[350650587,1738025442271,-150.0,0.00018986,2]
[350650588,1738025442280,-150.0,0.00018986,2]
[350650589,1738025442292,-150.0,0.00018986,2]
[350650590,1738025442301,-150.0,0.00018986,2]
[350650591,1738025442311,-150.0,0.00018986,2]
[350650592,1738025442320,-150.0,0.00018986,2]
[350650593,1738025442330,-150.0,0.00018986,2]
[350650594,1738025442339,-150.0,0.00018986,2]
[350650595,1738025442348,-150.0,0.00018986,2]
[350650596,1738025442358,-150.0,0.00018986,2]
[350650597,1738025442367,-150.0,0.00018986,2]
[350650598,1738025442376,-106564.9020096,0.00018992,2]
[350650599,1738025442504,-3550.03978375,0.00018992,2]
[350650600,1738025442516,-517.7691157,0.00018992,2]
[350650601,1738025442540,-1073.32697681,0.00015947,2]
[350650602,1738025442551,-32.67302319,0.00015947,2]
[350650603,1738025442560,-777.31292548,0.00018992,2]
[350650604,1738025442571,-252.90102083,0.00018992,2]
[350650605,1738025442582,-4865.79896752,0.00018992,2]
[350650606,1738025442593,-7259.42425626,0.00018992,2]
[350650608,1738025442658,-716.0,0.00018992,2]
[350650609,1738025442669,-12420.1787502,0.00018992,2]
[350650610,1738025442684,-27550.88,0.00018992,2]
[350650611,1738025442699,-10790.07282341,0.00018992,2]
[350650612,1738025442710,-37501.19758806,0.00018992,2]
[350650613,1738025442721,-743.2500025,0.00018992,2]
[350650614,1738025442738,-207250.64879495,0.00018992,2]
[350650616,1738025442917,-5197.04994013,0.00018992,2]
[350650617,1738025442972,-3028.33230841,0.00018992,2]
[350650618,1738025442984,-25265.77774051,0.00018992,2]
[350650619,1738025443133,-7469.900918,0.00018992,2]
[350650620,1738025443241,-1333.72102589,0.00018992,2]
[350650621,1738025443348,-1085.96685037,0.00018992,2]
[350650622,1738025443359,-306.459997,0.00018992,2]
[350650881,1738025445963,-648.0,0.00018992,2]
[350650883,1738025445974,-417.83165509,0.00018992,2]
[350650902,1738025446174,-2354.30962938,0.00018992,2]
[350650903,1738025446187,-1356.36375945,0.00018992,2]
[350650910,1738025588550,1058.0,0.00011779,2]
[350650911,1738025609706,1058.0,0.0001119,2]
[350650912,1738025630878,1058.0,0.0001063,2]
[350650913,1738025732724,166.35,0.00010137,2]
[350650915,1738026397274,1058.51938884,0.00011634,2]
[350650929,1738026578204,158.52,0.00010137,2]
[350650944,1738026632205,-1058.0,0.00012247,2]
[350650945,1738026632215,-1058.0,0.00012891,2]
[350650946,1738026632223,-1058.0,0.0001357,2]
[350650947,1738026632234,-1058.0,0.00014284,2]
[350650948,1738026632243,-657.9,0.0001477,2]
[350650949,1738026632254,-4450.34,0.00014983,2]
[350650950,1738026632263,-211.81,0.00014983,2]
[350650951,1738026632272,-1000.0,0.00014983,2]
[350650952,1738026632283,-23900.0,0.00014983,2]
[350650953,1738026632293,-382.57,0.00014983,2]
[350650954,1738026632302,-1058.0,0.00014998,2]
[350650955,1738026632311,-500.0,0.00015156,2]
[350650956,1738026632320,-20511.67,0.00015156,2]
[350650957,1738026632330,-629.10260947,0.000152,2]
[350650958,1738026632339,-273.28,0.000153,2]
[350650959,1738026632349,-1179.211,0.00015735,2]
[350650960,1738026632358,-96.90382419,0.00015748,2]
[350650961,1738026632369,-961.09617581,0.00015748,2]
[350650962,1738026632379,-2000.0,0.00016,2]
[350650963,1738026632388,-2269.506406,0.0001601,2]
[350650964,1738026632398,-500.0,0.00016055,2]
[350650965,1738026632408,-200.0,0.00016481,2]
[350650966,1738026632416,-3037.95366497,0.00016494,2]
[350650984,1738026638028,-187.28498121,0.0001347,2]
[350650985,1738026638037,-134.38633503,0.00016494,2]
[350650986,1738026638047,-200.0,0.00016494,2]
[350650987,1738026638058,-250.0,0.00016498,2]
[350650988,1738026638067,-900.0,0.000165,2]
[350650989,1738026638077,-329.76868376,0.000165,2]
[350650990,1738026638408,-346.01093728,0.000165,2]
[350650991,1738026640336,-224.22037896,0.000165,2]
[350650992,1738026640346,-900.0,0.000165,2]
[350650993,1738026640355,-900.0,0.000165,2]
[350650994,1738026640365,-900.0,0.000165,2]
[350650995,1738026640375,-136.67962104,0.000165,2]
[350651121,1738026646433,-763.32037896,0.000165,2]
[350651122,1738026646443,-900.0,0.000165,2]
[350651123,1738026646452,-900.0,0.000165,2]
[350651124,1738026646460,-900.0,0.000165,2]
[350651125,1738026646469,-900.0,0.000165,2]
[350651126,1738026646478,-250.0,0.00016507,2]
[350651127,1738026646487,-1058.0,0.00016536,2]
[350651128,1738026646496,-150.0,0.000166,4]
[350651129,1738026646505,-176.12,0.00016712,2]
[350651130,1738026646514,-151.68932393,0.00016732,30]
[350651131,1738026646525,-180.58067607,0.00016732,30]
[350651132,1738026646533,-1000.0,0.00016856,2]
[350651133,1738026646542,-1397.194,0.00016921,2]
[350651134,1738026646551,-469.14364393,0.00016938,2]
[350651137,1738026723383,923.9038172,0.00011848,2]
[350651138,1738026723556,923.9038172,0.00011898,2]
[350651139,1738026723933,923.9038172,0.00011843,2]
[350651140,1738026724225,923.9038172,0.00011862,2]
[350651141,1738026724494,923.9038172,0.00011919,2]
[350651142,1738026733063,200.0,0.00011879,2]
[350651143,1738026739111,200.0,0.00011917,2]
[350651144,1738026739417,200.0,0.00011918,2]
[350651145,1738026739729,200.0,0.00011906,2]
[350651146,1738026740002,200.0,0.00011866,2]
[350651147,1738026750148,200.0,0.00011827,2]
[350651148,1738026757964,622.47977729,0.00011845,2]
[350651149,1738026758278,622.47977729,0.00011906,2]
[350651150,1738026758550,622.47977729,0.00011829,2]
[350651151,1738026758848,622.47977729,0.00011878,2]
[350651152,1738026759130,622.47977729,0.0001189,2]
[350651153,1738026783722,3095.25905188,0.00011904,2]
[350651154,1738026784040,3095.25905188,0.0001185,2]
[350651155,1738026784316,3095.25905188,0.0001188,2]
[350651156,1738026784582,3095.25905188,0.0001188,2]
[350651157,1738026784846,3095.25905188,0.00011878,2]
[350651158,1738026791048,200.0,0.00011872,2]
[350651159,1738026791376,200.0,0.00011877,2]
[350651160,1738026791668,200.0,0.00011876,2]
[350651161,1738026955623,1000.0,0.00022,120]
[350651162,1738027382592,1993.88905543,0.00010773,7]
[350651163,1738027541587,1661.11094457,0.000108,2]
[350651164,1738027541614,150000.0,0.000108,2]
[350651165,1738027541641,594877.6978717,0.000108,2]
[350651166,1738027541692,10233.68044149,0.00011,2]
[350651193,1738027634768,277.65,0.00010137,2]
[350651196,1738027680441,57194.10541237,0.0001,2]
[350651208,1738027803709,487.12839074,0.00011863,2]
[350651209,1738027804007,487.12839074,0.00011887,2]
[350651210,1738027804312,487.12839074,0.00011862,2]
[350651211,1738027804652,487.12839074,0.00011865,2]
[350651212,1738027805068,487.12839074,0.00011851,2]
[350651213,1738027811286,200.0,0.00011898,2]
[350651214,1738027811604,200.0,0.00011915,2]
[350651233,1738027832336,-550.0,0.00013,2]
[350651234,1738027832346,-243.07877249,0.00013844,2]
[350651235,1738027832427,-417.85122751,0.00013844,2]
[350651236,1738027832437,-210.56305478,0.000149,2]
[350651237,1738027832446,-337.75,0.00014983,2]
[350651238,1738027832455,-200.0,0.00014983,2]
[350651239,1738027832464,-600.0,0.00015,2]
[350651240,1738027832474,-6903.0,0.00015,2]
[350651241,1738027832483,-5290.74041253,0.00015146,2]
[350651242,1738027832492,-500.0,0.00015156,2]
[350651243,1738027832501,-1000.0,0.00015504,2]
[350651244,1738027832510,-294.84,0.00015537,2]
[350651245,1738027832520,-500.0,0.00015545,2]
[350651246,1738027832529,-19851.9,0.00015661,2]
[350651247,1738027832538,-250.0,0.00015793,2]
[350651248,1738027832548,-990.0,0.00015874,2]
[350651249,1738027832557,-3922.016,0.00015874,2]
[350651250,1738027832567,-1273.18,0.00015874,2]
[350651251,1738027832575,-250.0,0.00015876,2]
[350651252,1738027832590,-660.93,0.00016107,2]
[350651253,1738027832599,-150.0,0.00016265,2]
[350651254,1738027832608,-567.0,0.00016265,2]
[350651255,1738027832618,-636.0,0.00016265,2]
[350651256,1738027832629,-1865.0,0.00016265,2]
[350651257,1738027832638,-1262.0,0.00016265,2]
[350651258,1738027832647,-782.0,0.00016265,2]
[350651259,1738027832657,-907.0,0.00016265,2]
[350651260,1738027832666,-2949.0,0.00016265,2]
[350651261,1738027832676,-538.0,0.00016265,2]
[350651262,1738027832685,-150.0,0.00016265,2]
[350651263,1738027832695,-39559.77877201,0.00016328,2]
[350651264,1738027832704,-641.0,0.00016356,2]
[350651265,1738027832713,-879.42475409,0.000165,15]
[350651266,1738027832723,-900.0,0.000165,2]
[350651267,1738027832732,-900.0,0.000165,2]
[350651268,1738027832742,-900.0,0.000165,2]
[350651269,1738027832752,-900.0,0.000165,2]
[350651270,1738027832761,-900.0,0.000165,2]
[350651271,1738027832770,-900.0,0.000165,2]
[350651272,1738027832779,-900.0,0.000165,2]
[350651273,1738027832789,-900.0,0.000165,2]
[350651274,1738027832799,-900.0,0.000165,2]
[350651275,1738027832808,-900.0,0.000165,2]
[350651276,1738027832817,-602.74,0.00016563,2]
[350651277,1738027832826,-602.74,0.00016563,2]
[350651278,1738027832835,-602.74,0.00016563,2]
[350651279,1738027832844,-289.23086672,0.00016563,2]
[350651280,1738027832853,-23900.0,0.00016564,2]
[350651281,1738027832862,-1916.794675,0.00016599,2]
[350651282,1738027832871,-216.68323283,0.0001662,2]
[350651283,1738027832881,-2500.0,0.00016641,2]
[350651284,1738027832891,-419.56341795,0.00016641,2]
[350651285,1738027832900,-315.65,0.00016658,30]
[350651286,1738027832909,-163.30571518,0.0001667,2]
[350651287,1738027832918,-176.14,0.00016712,2]
[350651288,1738027832927,-500.0,0.0001674,2]
[350651289,1738027832936,-500.0,0.0001674,2]
[350651290,1738027832945,-577.46153677,0.0001674,2]
[350651291,1738027832955,-1709.31,0.0001674,2]
[350651292,1738027832964,-1709.31,0.0001674,2]
[350651294,1738027832973,-1709.31,0.0001674,2]
[350651295,1738027832982,-500.0,0.0001674,2]
[350651297,1738027832992,-500.0,0.0001674,2]
[350651300,1738027833001,-186.76,0.0001674,2]
[350651301,1738027833011,-2006.34,0.0001674,2]
[350651303,1738027833020,-2006.34,0.0001674,2]
[350651305,1738027833029,-2006.34,0.0001674,2]
[350651307,1738027833039,-500.65,0.0001674,2]
[350651309,1738027833050,-500.65,0.0001674,2]
[350651311,1738027833060,-500.65,0.0001674,2]
[350651313,1738027833070,-150.84174256,0.0001674,2]
[350651315,1738027833079,-20000.0,0.00016741,2]
[350651317,1738027833089,-2504.43711,0.0001677,2]
[350651319,1738027833099,-573.15907486,0.00016773,2]
[350651321,1738027833110,-500.0,0.00016773,2]
[350651323,1738027833121,-503.88960858,0.00016773,2]
[350651325,1738027833131,-277.65,0.00016813,2]
[350651327,1738027833142,-1813.49,0.00016925,2]
[350651329,1738027833152,-173.354,0.00016925,2]
[350651331,1738027833162,-587.60185051,0.00016938,2]
[350651333,1738027833172,-650.0,0.00017,2]
[350651335,1738027833182,-1381.88,0.00017,31]
[350651337,1738027833192,-1381.88,0.00017,31]
[350651339,1738027833202,-1381.88,0.00017,31]
[350651341,1738027833212,-1381.88,0.00017,31]
[350651343,1738027833221,-1381.88,0.00017,31]
[350651345,1738027833231,-1381.88,0.00017,31]
[350651347,1738027833240,-1381.88,0.00017,31]
[350651349,1738027833250,-1381.88,0.00017,31]
[350651351,1738027833259,-1381.88,0.00017,31]
[350651353,1738027833268,-1381.88,0.00017,31]
[350651355,1738027833278,-1381.88,0.00017,31]
[350651357,1738027833288,-1381.88,0.00017,31]
[350651358,1738027833303,-1381.88,0.00017,31]
[350651360,1738027833313,-1381.88,0.00017,31]
[350651362,1738027833324,-1381.88,0.00017,31]
[350651365,1738027833334,-1381.88,0.00017,31]
[350651366,1738027833343,-438.12,0.00017043,2]
[350651369,1738027833354,-150.0,0.00017043,2]
[350651371,1738027833364,-180.06,0.00017043,2]
[350651373,1738027833374,-150.0,0.00017043,2]
[350651375,1738027833383,-1965.8,0.00017043,2]
[350651376,1738027833392,-298.28,0.00017043,2]
[350651377,1738027833402,-300.0,0.00017043,2]
[350651378,1738027833411,-242.57,0.00017043,2]
[350651379,1738027833420,-298.28,0.00017043,2]
[350651380,1738027833429,-150.0,0.00017043,2]
[350651381,1738027833439,-983.1,0.00017043,2]
[350651382,1738027833450,-150.0,0.00017043,2]
[350651383,1738027833459,-279.76,0.00017043,2]
[350651384,1738027833469,-150.0,0.00017043,2]
[350651385,1738027833479,-270.73,0.00017043,2]
[350651386,1738027833488,-983.1,0.00017043,2]
[350651387,1738027833498,-150.0,0.00017043,2]
[350651388,1738027833507,-150.0,0.00017043,2]
[350651389,1738027833517,-150.0,0.00017043,2]
[350651390,1738027833527,-976.48,0.00017043,2]
[350651391,1738027833536,-875.48,0.00017043,2]
[350651392,1738027833548,-300.0,0.00017043,2]
[350651393,1738027833557,-983.1,0.00017043,2]
[350651394,1738027833567,-438.12,0.00017043,2]